[Event "*** Titled Tuesday Blitz"]
[Site "Chess.com"]
[Date "2021.03.02"]
[Round "11"]
[White "Gabrielian_Artur"]
[Black "FairChess_on_YouTube"]
[Result "0-1"]
[WhiteElo "2797"]
[BlackElo "2959"]
[TimeControl "180+1"]
[EndTime "12:08:40 PST"]
[Termination "FairChess_on_YouTube won by resignation"]

1. e4 {[%clk 0:03:00.9]} 1... d5 {[%clk 0:02:59.7]} 2. exd5 {[%clk 0:03:00.6]}
2... Qxd5 {[%clk 0:03:00.6]} 3. Nc3 {[%clk 0:03:00.6]} 3... Qd6 {[%clk
0:02:59.9]} 4. d4 {[%clk 0:03:00.6]} 4... Nf6 {[%clk 0:02:59.9]} 5. Nf3 {[%clk
0:03:00.9]} 5... c6 {[%clk 0:03:00.4]} 6. Ne5 {[%clk 0:02:57.1]} 6... Nbd7
{[%clk 0:02:52.9]} 7. Bf4 {[%clk 0:02:53.8]} 7... Qb4 {[%clk 0:02:48.8]} 8. Qd2
{[%clk 0:02:49.5]} 8... Nxe5 {[%clk 0:02:41.1]} 9. Bxe5 {[%clk 0:02:32.9]} 9...
Bf5 {[%clk 0:02:40.5]} 10. Bd3 {[%clk 0:02:29]} 10... Bxd3 {[%clk 0:02:37.5]}
11. Qxd3 {[%clk 0:02:29.1]} 11... Nd7 {[%clk 0:02:26.2]} 12. O-O {[%clk
0:02:26]} 12... e6 {[%clk 0:02:23]} 13. Ne4 {[%clk 0:02:10.2]} 13... Nxe5 {[%clk
0:02:16.6]} 14. dxe5 {[%clk 0:02:10.2]} 14... Rd8 {[%clk 0:02:17]} 15. Qf3
{[%clk 0:02:06.5]} 15... Be7 {[%clk 0:02:13.6]} 16. Qg4 {[%clk 0:01:56.8]} 16...
O-O {[%clk 0:02:01.6]} 17. c3 {[%clk 0:01:42.2]} 17... Qb5 {[%clk 0:01:43.9]}
18. f4 {[%clk 0:01:30.3]} 18... Qxb2 {[%clk 0:01:35.2]} 19. Rab1 {[%clk
0:01:14.3]} 19... Qxa2 {[%clk 0:01:35.2]} 20. Rxb7 {[%clk 0:01:11.7]} 20... Qc4
{[%clk 0:01:25.8]} 21. Nf6+ {[%clk 0:00:37.2]} 21... Kh8 {[%clk 0:01:25.5]} 22.
Rxe7 {[%clk 0:00:18.6]} 22... Qc5+ {[%clk 0:01:25.2]} 23. Kh1 {[%clk 0:00:19.1]}
23... Qxe7 {[%clk 0:01:25.8]} 24. Qg5 {[%clk 0:00:16.3]} 24... Rd3 {[%clk
0:00:46]} 25. h3 {[%clk 0:00:16.5]} 25... Rfd8 {[%clk 0:00:44.4]} 26. Kh2 {[%clk
0:00:16.1]} 26... gxf6 {[%clk 0:00:40.6]} 27. exf6 {[%clk 0:00:15.8]} 27... Qf8
{[%clk 0:00:41.2]} 28. f5 {[%clk 0:00:13.3]} 28... Qg8 {[%clk 0:00:37.3]} 29.
Qh6 {[%clk 0:00:09.5]} 29... Qg3+ {[%clk 0:00:34.8]} 30. Kh1 {[%clk 0:00:09.4]}
30... Rd1 {[%clk 0:00:33.3]} 0-1

[Event "*** Titled Tuesday Blitz"]
[Site "Chess.com"]
[Date "2021.03.02"]
[Round "11"]
[White "WcmDominicToretto"]
[Black "Evachess2006"]
[Result "1-0"]
[WhiteElo "1900"]
[BlackElo "1589"]
[TimeControl "180+1"]
[EndTime "12:08:44 PST"]
[Termination "WcmDominicToretto won on time"]

1. e4 {[%clk 0:03:00.9]} 1... e5 {[%clk 0:02:20.7]} 2. Nf3 {[%clk 0:02:59.3]}
2... Nc6 {[%clk 0:02:09.7]} 3. Nc3 {[%clk 0:02:58.7]} 3... Nf6 {[%clk
0:01:57.1]} 4. d4 {[%clk 0:02:57.6]} 4... exd4 {[%clk 0:01:55.5]} 5. Nxd4 {[%clk
0:02:56.5]} 5... Nxd4 {[%clk 0:01:56.4]} 6. Qxd4 {[%clk 0:02:55.6]} 6... d6
{[%clk 0:01:36]} 7. Bg5 {[%clk 0:02:53.6]} 7... Be7 {[%clk 0:01:26.8]} 8. O-O-O
{[%clk 0:02:50.3]} 8... O-O {[%clk 0:01:21.8]} 9. f4 {[%clk 0:02:48.5]} 9... Bg4
{[%clk 0:01:18.9]} 10. Be2 {[%clk 0:02:47]} 10... Bxe2 {[%clk 0:01:17.7]} 11.
Nxe2 {[%clk 0:02:43.5]} 11... h6 {[%clk 0:01:18.6]} 12. Bh4 {[%clk 0:02:42.2]}
12... Nxe4 {[%clk 0:01:11.8]} 13. Qxe4 {[%clk 0:02:29.2]} 13... Bxh4 {[%clk
0:01:10.1]} 14. g4 {[%clk 0:02:26.3]} 14... Re8 {[%clk 0:01:06]} 15. Qf3 {[%clk
0:02:24.9]} 15... Qe7 {[%clk 0:00:48.9]} 16. Nd4 {[%clk 0:02:09.1]} 16... Qe3+
{[%clk 0:00:46.6]} 17. Kb1 {[%clk 0:02:07.9]} 17... Qxf3 {[%clk 0:00:45]} 18.
Nxf3 {[%clk 0:02:08.8]} 18... Re4 {[%clk 0:00:41.1]} 19. Nxh4 {[%clk 0:02:07.8]}
19... Rxf4 {[%clk 0:00:39.1]} 20. h3 {[%clk 0:02:06.9]} 20... Rf2 {[%clk
0:00:31.2]} 21. Nf5 {[%clk 0:02:04]} 21... Re8 {[%clk 0:00:27.5]} 22. Rde1
{[%clk 0:01:59.9]} 22... Re6 {[%clk 0:00:18.2]} 23. Nd4 {[%clk 0:01:56.4]} 23...
Rxe1+ {[%clk 0:00:16]} 24. Rxe1 {[%clk 0:01:53.4]} 24... Kf8 {[%clk 0:00:16.9]}
25. Rh1 {[%clk 0:01:51.7]} 25... Rd2 {[%clk 0:00:14.9]} 26. Nb3 {[%clk
0:01:50.9]} 26... Rd5 {[%clk 0:00:13.3]} 27. a3 {[%clk 0:01:50.6]} 27... Re5
{[%clk 0:00:13.3]} 28. Kc1 {[%clk 0:01:49.7]} 28... c5 {[%clk 0:00:13.4]} 29.
Kd2 {[%clk 0:01:47.8]} 29... b5 {[%clk 0:00:13.4]} 30. Nc1 {[%clk 0:01:46.5]}
30... Rd5+ {[%clk 0:00:11.5]} 31. Ke3 {[%clk 0:01:44.1]} 31... Ke7 {[%clk
0:00:12.4]} 32. Nd3 {[%clk 0:01:41.9]} 32... c4 {[%clk 0:00:11.9]} 33. Nf4
{[%clk 0:01:41.7]} 33... Re5+ {[%clk 0:00:11.7]} 34. Kd4 {[%clk 0:01:39.4]}
34... g5 {[%clk 0:00:10.8]} 35. Nd5+ {[%clk 0:01:38.4]} 35... Kd7 {[%clk
0:00:10]} 36. Rf1 {[%clk 0:01:35.7]} 36... Ke8 {[%clk 0:00:06.1]} 37. Rf6 {[%clk
0:01:28.6]} 37... Re1 {[%clk 0:00:04.9]} 38. Rxh6 {[%clk 0:01:26.3]} 38... Rd1+
{[%clk 0:00:05.3]} 39. Ke4 {[%clk 0:01:22.1]} 39... Rd2 {[%clk 0:00:05.1]} 40.
Rh8+ {[%clk 0:01:15.8]} 40... Kd7 {[%clk 0:00:04.2]} 41. Ne3 {[%clk 0:01:13.1]}
41... Re2 {[%clk 0:00:02.7]} 42. Kf3 {[%clk 0:01:03.7]} 1-0

[Event "*** Titled Tuesday Blitz"]
[Site "Chess.com"]
[Date "2021.03.02"]
[Round "11"]
[White "ChristopherYoo"]
[Black "bocah_sakit"]
[Result "0-1"]
[WhiteElo "2884"]
[BlackElo "2869"]
[TimeControl "180+1"]
[EndTime "12:08:48 PST"]
[Termination "bocah_sakit won by resignation"]

1. d4 {[%clk 0:03:00.9]} 1... Nf6 {[%clk 0:03:00]} 2. Nf3 {[%clk 0:03:00.6]}
2... g6 {[%clk 0:03:00.6]} 3. c4 {[%clk 0:03:00.1]} 3... Bg7 {[%clk 0:03:01.2]}
4. Nc3 {[%clk 0:03:00.7]} 4... O-O {[%clk 0:03:01.8]} 5. Bg5 {[%clk 0:03:01]}
5... d6 {[%clk 0:03:01.4]} 6. Qd2 {[%clk 0:03:01.4]} 6... c5 {[%clk 0:02:53.9]}
7. d5 {[%clk 0:03:00.8]} 7... Qb6 {[%clk 0:02:49]} 8. e4 {[%clk 0:02:55.9]} 8...
e6 {[%clk 0:02:39.4]} 9. Be2 {[%clk 0:02:55.1]} 9... Re8 {[%clk 0:02:12.1]} 10.
O-O {[%clk 0:02:43.1]} 10... exd5 {[%clk 0:02:08.4]} 11. exd5 {[%clk 0:02:12.6]}
11... Bf5 {[%clk 0:02:06.4]} 12. Rfe1 {[%clk 0:01:58.2]} 12... Nbd7 {[%clk
0:02:04.4]} 13. Rad1 {[%clk 0:01:51.8]} 13... Ne4 {[%clk 0:02:00.7]} 14. Nxe4
{[%clk 0:01:50.7]} 14... Bxe4 {[%clk 0:02:01.6]} 15. b3 {[%clk 0:01:50.5]} 15...
a5 {[%clk 0:01:58.6]} 16. Qf4 {[%clk 0:01:32.5]} 16... a4 {[%clk 0:01:55.9]} 17.
Nd2 {[%clk 0:01:32.5]} 17... Bc2 {[%clk 0:01:46.6]} 18. Rc1 {[%clk 0:01:31.8]}
18... axb3 {[%clk 0:01:46.9]} 19. axb3 {[%clk 0:01:32.7]} 19... Ra2 {[%clk
0:01:46.5]} 20. Bg4 {[%clk 0:01:23.8]} 20... Ne5 {[%clk 0:01:40.9]} 21. Nf3
{[%clk 0:01:12.7]} 21... f5 {[%clk 0:01:34]} 22. Bh3 {[%clk 0:01:02.4]} 22...
Be4 {[%clk 0:01:29.5]} 23. Rxe4 {[%clk 0:00:55]} 23... fxe4 {[%clk 0:01:18.2]}
24. Qxe4 {[%clk 0:00:33.2]} 24... Nxf3+ {[%clk 0:01:09.3]} 25. Qxf3 {[%clk
0:00:32.4]} 25... Rf8 {[%clk 0:01:09.9]} 26. Qe3 {[%clk 0:00:27.2]} 26... Raxf2
{[%clk 0:00:53.3]} 27. Qe6+ {[%clk 0:00:13.3]} 27... Kh8 {[%clk 0:00:53.3]} 28.
Be7 {[%clk 0:00:10.7]} 28... Rf1+ {[%clk 0:00:29.6]} 29. Rxf1 {[%clk 0:00:10.1]}
29... Bd4+ {[%clk 0:00:30]} 30. Rf2 {[%clk 0:00:10.4]} 30... Rxf2 {[%clk
0:00:30.3]} 31. Qd7 {[%clk 0:00:01.5]} 31... Rf3+ {[%clk 0:00:28.1]} 0-1

[Event "*** Titled Tuesday Blitz"]
[Site "Chess.com"]
[Date "2021.03.02"]
[Round "11"]
[White "pastouche06"]
[Black "oogee"]
[Result "1-0"]
[WhiteElo "2557"]
[BlackElo "2397"]
[TimeControl "180+1"]
[EndTime "12:08:49 PST"]
[Termination "pastouche06 won by resignation"]

1. d4 {[%clk 0:03:00.9]} 1... Nf6 {[%clk 0:02:59.3]} 2. c4 {[%clk 0:03:00.4]}
2... g6 {[%clk 0:02:59.3]} 3. f3 {[%clk 0:03:00.3]} 3... Bg7 {[%clk 0:02:58]} 4.
e4 {[%clk 0:02:59.1]} 4... O-O {[%clk 0:02:58.1]} 5. Ne2 {[%clk 0:02:59.2]} 5...
d6 {[%clk 0:02:57.5]} 6. Be3 {[%clk 0:02:57.5]} 6... a6 {[%clk 0:02:55.8]} 7.
Qd2 {[%clk 0:02:56.9]} 7... b5 {[%clk 0:02:55.7]} 8. Ng3 {[%clk 0:02:53.6]} 8...
c6 {[%clk 0:02:47.3]} 9. Be2 {[%clk 0:02:41.5]} 9... bxc4 {[%clk 0:02:44.1]} 10.
Bxc4 {[%clk 0:02:40.7]} 10... d5 {[%clk 0:02:44.6]} 11. Be2 {[%clk 0:02:37.9]}
11... dxe4 {[%clk 0:02:41.9]} 12. fxe4 {[%clk 0:02:38.8]} 12... Ng4 {[%clk
0:02:41.4]} 13. Bxg4 {[%clk 0:02:37.5]} 13... Bxg4 {[%clk 0:02:40.7]} 14. O-O
{[%clk 0:02:35.3]} 14... Nd7 {[%clk 0:02:38.1]} 15. h3 {[%clk 0:02:27.6]} 15...
Be6 {[%clk 0:02:30.9]} 16. d5 {[%clk 0:02:18.8]} 16... Bxd5 {[%clk 0:01:53.4]}
17. exd5 {[%clk 0:02:19.7]} 17... Qb8 {[%clk 0:01:50.1]} 18. dxc6 {[%clk
0:01:55]} 18... Nb6 {[%clk 0:01:31]} 19. Bf4 {[%clk 0:01:23.4]} 19... e5 {[%clk
0:01:30.9]} 20. Bh6 {[%clk 0:01:20.2]} 20... Nc4 {[%clk 0:01:31.1]} 21. Qc1
{[%clk 0:01:20.4]} 21... Bxh6 {[%clk 0:01:21.1]} 22. Qxh6 {[%clk 0:01:19]} 22...
Qxb2 {[%clk 0:01:20.9]} 23. Ne4 {[%clk 0:01:03.1]} 23... Qd4+ {[%clk 0:01:14.7]}
24. Nf2 {[%clk 0:00:47.4]} 24... Qxa1 {[%clk 0:00:58.5]} 25. Nd2 {[%clk
0:00:45.6]} 25... Qd4 {[%clk 0:00:55.5]} 26. Nf3 {[%clk 0:00:45.5]} 26... Qa7
{[%clk 0:00:44.6]} 27. Rc1 {[%clk 0:00:35.1]} 27... Rad8 {[%clk 0:00:31.7]} 28.
Ng5 {[%clk 0:00:25.9]} 28... f5 {[%clk 0:00:30.6]} 29. Rxc4 {[%clk 0:00:24.6]}
29... Rd1+ {[%clk 0:00:19.3]} 30. Kh2 {[%clk 0:00:23.9]} 30... Rf1 {[%clk
0:00:12.9]} 31. c7 {[%clk 0:00:19.9]} 1-0

[Event "*** Titled Tuesday Blitz"]
[Site "Chess.com"]
[Date "2021.03.02"]
[Round "11"]
[White "Andrakhanova"]
[Black "Lion-Al-Messi"]
[Result "0-1"]
[WhiteElo "2287"]
[BlackElo "2446"]
[TimeControl "180+1"]
[EndTime "12:08:50 PST"]
[Termination "Lion-Al-Messi won by resignation"]

1. c4 {[%clk 0:02:40.1]} 1... c5 {[%clk 0:02:54.4]} 2. Nc3 {[%clk 0:02:40.2]}
2... Nc6 {[%clk 0:02:54.4]} 3. g3 {[%clk 0:02:40.3]} 3... g6 {[%clk 0:02:55]} 4.
Bg2 {[%clk 0:02:40.7]} 4... Bg7 {[%clk 0:02:55.6]} 5. Nf3 {[%clk 0:02:41]} 5...
Nh6 {[%clk 0:02:56.2]} 6. b3 {[%clk 0:02:40.4]} 6... Nf5 {[%clk 0:02:56.2]} 7.
Bb2 {[%clk 0:02:40.6]} 7... O-O {[%clk 0:02:56.5]} 8. e3 {[%clk 0:02:40.8]} 8...
a6 {[%clk 0:02:56.8]} 9. O-O {[%clk 0:02:40.3]} 9... Rb8 {[%clk 0:02:56.9]} 10.
a4 {[%clk 0:02:39.7]} 10... Nb4 {[%clk 0:02:55.5]} 11. d4 {[%clk 0:02:38.5]}
11... cxd4 {[%clk 0:02:55.1]} 12. Nxd4 {[%clk 0:02:38.9]} 12... d5 {[%clk
0:02:56]} 13. Nxd5 {[%clk 0:02:33.3]} 13... Nxd5 {[%clk 0:02:54]} 14. cxd5
{[%clk 0:02:31.2]} 14... e5 {[%clk 0:02:50]} 15. dxe6 {[%clk 0:02:28.1]} 15...
Bxe6 {[%clk 0:02:49.3]} 16. Nxe6 {[%clk 0:02:27.5]} 16... Qxd1 {[%clk
0:02:45.5]} 17. Raxd1 {[%clk 0:02:27.4]} 17... fxe6 {[%clk 0:02:45.1]} 18. Bxg7
{[%clk 0:02:25.7]} 18... Kxg7 {[%clk 0:02:44.4]} 19. Rd7+ {[%clk 0:02:24.6]}
19... Rf7 {[%clk 0:02:44.8]} 20. Rfd1 {[%clk 0:02:23.8]} 20... b5 {[%clk
0:02:45]} 21. Rxf7+ {[%clk 0:02:17.2]} 21... Kxf7 {[%clk 0:02:45.9]} 22. Rd7+
{[%clk 0:02:17.1]} 22... Kf6 {[%clk 0:02:45.3]} 23. e4 {[%clk 0:02:03.6]} 23...
bxa4 {[%clk 0:02:44.9]} 24. bxa4 {[%clk 0:02:01.8]} 24... Rb1+ {[%clk
0:02:44.8]} 25. Bf1 {[%clk 0:02:00.8]} 25... Ne7 {[%clk 0:02:45.7]} 26. e5+
{[%clk 0:01:58.3]} 26... Kf7 {[%clk 0:02:45.2]} 27. Kg2 {[%clk 0:01:57.1]} 27...
Ra1 {[%clk 0:02:44]} 28. Rd4 {[%clk 0:01:45.5]} 28... a5 {[%clk 0:02:43]} 29.
Bc4 {[%clk 0:01:39.5]} 29... Re1 {[%clk 0:02:22.3]} 30. f4 {[%clk 0:01:32.1]}
30... Rc1 {[%clk 0:02:16.7]} 31. h4 {[%clk 0:01:24.8]} 31... Rc2+ {[%clk
0:02:15.7]} 32. Kh3 {[%clk 0:01:24.3]} 32... Rc3 {[%clk 0:02:14.6]} 33. Bd3
{[%clk 0:01:13.7]} 33... Nd5 {[%clk 0:02:14.9]} 34. Be4 {[%clk 0:01:10.1]} 34...
Nxf4+ {[%clk 0:02:14.6]} 35. Kg4 {[%clk 0:01:07.4]} 35... Ne2 {[%clk 0:02:13.6]}
36. Rd7+ {[%clk 0:01:06]} 36... Ke8 {[%clk 0:02:13.7]} 37. Rd3 {[%clk
0:01:01.4]} 37... Rc4 {[%clk 0:02:09.1]} 38. Kf3 {[%clk 0:00:50]} 38... Nd4+
{[%clk 0:02:08]} 39. Ke3 {[%clk 0:00:44.9]} 39... Nf5+ {[%clk 0:02:08]} 40. Bxf5
{[%clk 0:00:41.7]} 40... gxf5 {[%clk 0:02:08.9]} 41. Rd6 {[%clk 0:00:37.1]}
41... Re4+ {[%clk 0:02:08.9]} 42. Kf3 {[%clk 0:00:36.4]} 42... Rxe5 {[%clk
0:02:09.8]} 43. Ra6 {[%clk 0:00:36.3]} 43... h6 {[%clk 0:02:06.3]} 44. h5 {[%clk
0:00:35.5]} 44... Ke7 {[%clk 0:02:05.7]} 45. Ra8 {[%clk 0:00:29]} 45... Kf7
{[%clk 0:01:48.6]} 46. Ra7+ {[%clk 0:00:24.1]} 46... Kf6 {[%clk 0:01:47.9]} 47.
Ra6 {[%clk 0:00:22.7]} 47... Kg5 {[%clk 0:01:45.8]} 48. Ra8 {[%clk 0:00:15.6]}
48... Kxh5 {[%clk 0:01:45.5]} 49. Ra6 {[%clk 0:00:14.3]} 49... Kg5 {[%clk
0:01:44.4]} 50. Ra8 {[%clk 0:00:14.1]} 50... Rc5 {[%clk 0:01:41.4]} 51. Ra6
{[%clk 0:00:12.8]} 51... Rc3+ {[%clk 0:01:41.5]} 52. Kg2 {[%clk 0:00:12.3]}
52... Kg4 {[%clk 0:01:37.3]} 53. Rxe6 {[%clk 0:00:09.8]} 53... Rc2+ {[%clk
0:01:37]} 54. Kf1 {[%clk 0:00:09.1]} 54... Kf3 {[%clk 0:01:36.8]} 55. Ke1 {[%clk
0:00:08.2]} 55... Rc4 {[%clk 0:01:29.7]} 56. Re5 {[%clk 0:00:07.2]} 56... Re4+
{[%clk 0:01:29.8]} 0-1

[Event "*** Titled Tuesday Blitz"]
[Site "Chess.com"]
[Date "2021.03.02"]
[Round "11"]
[White "KubaGepard"]
[Black "Angel_Hranitel_37"]
[Result "0-1"]
[WhiteElo "2397"]
[BlackElo "2495"]
[TimeControl "180+1"]
[EndTime "12:08:52 PST"]
[Termination "Angel_Hranitel_37 won by resignation"]

1. d4 {[%clk 0:03:00.9]} 1... d5 {[%clk 0:02:57.4]} 2. Nf3 {[%clk 0:03:01.3]}
2... Nf6 {[%clk 0:02:56.4]} 3. Bf4 {[%clk 0:03:01.4]} 3... Bf5 {[%clk
0:02:50.8]} 4. e3 {[%clk 0:03:00.4]} 4... e6 {[%clk 0:02:51.7]} 5. c3 {[%clk
0:03:00.2]} 5... c5 {[%clk 0:02:50.5]} 6. Nbd2 {[%clk 0:02:58.7]} 6... Nc6
{[%clk 0:02:50.9]} 7. Nh4 {[%clk 0:02:51.5]} 7... Bd6 {[%clk 0:02:48.2]} 8. Bxd6
{[%clk 0:02:47.4]} 8... Qxd6 {[%clk 0:02:49.1]} 9. dxc5 {[%clk 0:02:48]} 9...
Qxc5 {[%clk 0:02:48.5]} 10. Nxf5 {[%clk 0:02:48.6]} 10... exf5 {[%clk
0:02:49.4]} 11. Nb3 {[%clk 0:02:48.3]} 11... Qd6 {[%clk 0:02:48.8]} 12. Bd3
{[%clk 0:02:34.6]} 12... g6 {[%clk 0:02:48.5]} 13. Nd4 {[%clk 0:02:24.5]} 13...
O-O {[%clk 0:02:48.3]} 14. h4 {[%clk 0:02:18.9]} 14... h5 {[%clk 0:02:47]} 15.
Nxc6 {[%clk 0:02:03.9]} 15... bxc6 {[%clk 0:02:46.8]} 16. Qc2 {[%clk 0:01:47.3]}
16... a5 {[%clk 0:02:44.2]} 17. Rh3 {[%clk 0:01:42.6]} 17... a4 {[%clk
0:02:44.5]} 18. Rd1 {[%clk 0:01:25.1]} 18... a3 {[%clk 0:02:44.3]} 19. b3 {[%clk
0:01:24.5]} 19... Qe7 {[%clk 0:02:41.3]} 20. Bxf5 {[%clk 0:01:19.5]} 20... gxf5
{[%clk 0:02:40.9]} 21. Qxf5 {[%clk 0:01:18]} 21... Kh8 {[%clk 0:02:31.1]} 22.
Rf3 {[%clk 0:01:14.4]} 22... Nh7 {[%clk 0:02:17.8]} 23. Qxh5 {[%clk 0:01:13.4]}
23... Qc5 {[%clk 0:01:51.4]} 24. c4 {[%clk 0:00:48.2]} 24... Qa5+ {[%clk
0:01:45.4]} 25. Kf1 {[%clk 0:00:45.4]} 25... dxc4 {[%clk 0:01:45.9]} 26. Qxa5
{[%clk 0:00:25.7]} 26... Rxa5 {[%clk 0:01:46.8]} 27. bxc4 {[%clk 0:00:26.2]}
27... Kg7 {[%clk 0:01:41.4]} 28. g3 {[%clk 0:00:26.1]} 28... Nf6 {[%clk
0:01:41.3]} 29. Rd4 {[%clk 0:00:24.8]} 29... c5 {[%clk 0:01:33.1]} 30. Rdf4
{[%clk 0:00:24.1]} 30... Ra6 {[%clk 0:01:33.5]} 31. g4 {[%clk 0:00:24]} 31...
Nd7 {[%clk 0:01:28.8]} 32. Rf5 {[%clk 0:00:22.8]} 32... f6 {[%clk 0:01:26.8]}
33. g5 {[%clk 0:00:22.8]} 33... Rb8 {[%clk 0:01:27]} 34. h5 {[%clk 0:00:20.9]}
34... Rb1+ {[%clk 0:01:06.5]} 35. Kg2 {[%clk 0:00:20.5]} 35... Rb2 {[%clk
0:01:03.1]} 36. h6+ {[%clk 0:00:20.5]} 36... Kg6 {[%clk 0:01:03.2]} 37. gxf6
{[%clk 0:00:20.5]} 37... Nxf6 {[%clk 0:01:01.2]} 38. Rxc5 {[%clk 0:00:17.9]}
38... Rxa2 {[%clk 0:01:01.1]} 39. Rg3+ {[%clk 0:00:17.4]} 39... Kxh6 {[%clk
0:00:58.3]} 40. Rc8 {[%clk 0:00:17.3]} 40... Rxf2+ {[%clk 0:00:55]} 41. Kxf2
{[%clk 0:00:16.8]} 41... Ne4+ {[%clk 0:00:55.7]} 42. Kf3 {[%clk 0:00:16.6]}
42... Nxg3 {[%clk 0:00:56.6]} 43. Rh8+ {[%clk 0:00:15.6]} 43... Kg7 {[%clk
0:00:56.5]} 44. Rd8 {[%clk 0:00:12.7]} 44... a2 {[%clk 0:00:56.6]} 45. Rd1
{[%clk 0:00:13.1]} 45... a1=Q {[%clk 0:00:56.3]} 46. Rxa1 {[%clk 0:00:13.5]}
46... Rxa1 {[%clk 0:00:57.1]} 47. Kxg3 {[%clk 0:00:14.4]} 47... Kf6 {[%clk
0:00:56.3]} 48. Kf4 {[%clk 0:00:14.7]} 48... Rc1 {[%clk 0:00:55.7]} 0-1

[Event "*** Titled Tuesday Blitz"]
[Site "Chess.com"]
[Date "2021.03.02"]
[Round "11"]
[White "elextranjero00"]
[Black "Natalya_Buksa"]
[Result "1-0"]
[WhiteElo "2657"]
[BlackElo "2521"]
[TimeControl "180+1"]
[EndTime "12:08:53 PST"]
[Termination "elextranjero00 won by checkmate"]

1. e4 {[%clk 0:03:00.9]} 1... c5 {[%clk 0:02:59.7]} 2. Nf3 {[%clk 0:03:00.5]}
2... Nc6 {[%clk 0:02:59.9]} 3. Bb5 {[%clk 0:02:58]} 3... g6 {[%clk 0:02:57.1]}
4. O-O {[%clk 0:02:57.4]} 4... Bg7 {[%clk 0:02:56.8]} 5. c3 {[%clk 0:02:56.8]}
5... Nf6 {[%clk 0:02:56.7]} 6. Re1 {[%clk 0:02:56.7]} 6... O-O {[%clk
0:02:50.9]} 7. d4 {[%clk 0:02:54.4]} 7... cxd4 {[%clk 0:02:49.5]} 8. cxd4 {[%clk
0:02:54.3]} 8... d5 {[%clk 0:02:49.8]} 9. e5 {[%clk 0:02:54.1]} 9... Ne4 {[%clk
0:02:50.2]} 10. Be3 {[%clk 0:02:50.3]} 10... Qb6 {[%clk 0:02:46.7]} 11. Bxc6
{[%clk 0:02:50]} 11... Qxc6 {[%clk 0:02:20.4]} 12. Nbd2 {[%clk 0:02:37.3]} 12...
Bg4 {[%clk 0:02:19.2]} 13. h3 {[%clk 0:02:36.7]} 13... Nxd2 {[%clk 0:02:09.1]}
14. Bxd2 {[%clk 0:02:32.5]} 14... Bf5 {[%clk 0:01:50.4]} 15. Re3 {[%clk
0:02:15.8]} 15... Rac8 {[%clk 0:01:46.8]} 16. Rc1 {[%clk 0:02:07.7]} 16... Qd7
{[%clk 0:01:40.2]} 17. Rec3 {[%clk 0:01:45.5]} 17... Rxc3 {[%clk 0:01:39.7]} 18.
Rxc3 {[%clk 0:01:46.4]} 18... Rc8 {[%clk 0:01:40]} 19. Qb3 {[%clk 0:01:39.5]}
19... Rxc3 {[%clk 0:01:36.2]} 20. Bxc3 {[%clk 0:01:39.5]} 20... h6 {[%clk
0:01:29.5]} 21. Nd2 {[%clk 0:01:30]} 21... Bd3 {[%clk 0:01:26.3]} 22. Bb4 {[%clk
0:01:26]} 22... Ba6 {[%clk 0:01:23.1]} 23. Qa3 {[%clk 0:01:22.3]} 23... Bf8
{[%clk 0:01:11.1]} 24. Nb3 {[%clk 0:01:18.6]} 24... Qb5 {[%clk 0:01:07.8]} 25.
Nd2 {[%clk 0:01:09.4]} 25... Qe2 {[%clk 0:00:59.9]} 26. Qe3 {[%clk 0:01:03.5]}
26... Qd1+ {[%clk 0:00:42.8]} 27. Kh2 {[%clk 0:01:03.3]} 27... Qc2 {[%clk
0:00:39.8]} 28. Qc3 {[%clk 0:00:51.2]} 28... Qd1 {[%clk 0:00:38.6]} 29. Qe3
{[%clk 0:00:51]} 29... Kg7 {[%clk 0:00:33.4]} 30. Nb3 {[%clk 0:00:34.1]} 30...
Bc4 {[%clk 0:00:28.8]} 31. Nc5 {[%clk 0:00:30.3]} 31... e6 {[%clk 0:00:19.5]}
32. Qf4 {[%clk 0:00:28.7]} 32... Be7 {[%clk 0:00:16.8]} 33. Nxe6+ {[%clk
0:00:27.1]} 33... fxe6 {[%clk 0:00:16.4]} 34. Bxe7 {[%clk 0:00:27.1]} 34... Qd3
{[%clk 0:00:13]} 35. Qf8+ {[%clk 0:00:26.4]} 35... Kh7 {[%clk 0:00:12.9]} 36.
Qf7+ {[%clk 0:00:27]} 36... Kh8 {[%clk 0:00:13.2]} 37. Bf6# {[%clk 0:00:27.9]}
1-0

[Event "*** Titled Tuesday Blitz"]
[Site "Chess.com"]
[Date "2021.03.02"]
[Round "11"]
[White "Fortitudine"]
[Black "enriquebutti"]
[Result "0-1"]
[WhiteElo "2313"]
[BlackElo "2201"]
[TimeControl "180+1"]
[EndTime "12:08:56 PST"]
[Termination "enriquebutti won by resignation"]

1. c4 {[%clk 0:03:00.9]} 1... e5 {[%clk 0:02:59.4]} 2. g3 {[%clk 0:03:00]} 2...
Nc6 {[%clk 0:02:58.5]} 3. Bg2 {[%clk 0:03:00]} 3... g6 {[%clk 0:02:58.2]} 4. Nc3
{[%clk 0:02:59]} 4... Bg7 {[%clk 0:02:58]} 5. e4 {[%clk 0:02:59.2]} 5... d6
{[%clk 0:02:57.8]} 6. d3 {[%clk 0:02:59.5]} 6... f5 {[%clk 0:02:57.4]} 7. Nge2
{[%clk 0:02:58.9]} 7... Nf6 {[%clk 0:02:56.9]} 8. O-O {[%clk 0:02:58.2]} 8...
O-O {[%clk 0:02:56.5]} 9. f3 {[%clk 0:02:44.1]} 9... f4 {[%clk 0:02:48.6]} 10.
d4 {[%clk 0:02:25.4]} 10... g5 {[%clk 0:02:42.7]} 11. dxe5 {[%clk 0:02:19.2]}
11... dxe5 {[%clk 0:02:42.2]} 12. Qxd8 {[%clk 0:02:18.1]} 12... Nxd8 {[%clk
0:02:23.1]} 13. b3 {[%clk 0:02:17]} 13... Ne6 {[%clk 0:02:19.2]} 14. Nd5 {[%clk
0:02:02.7]} 14... c6 {[%clk 0:02:05.6]} 15. Ne7+ {[%clk 0:01:56.3]} 15... Kf7
{[%clk 0:02:03.2]} 16. Nxc8 {[%clk 0:01:56.4]} 16... Raxc8 {[%clk 0:02:01.3]}
17. Bb2 {[%clk 0:01:49.6]} 17... Nd7 {[%clk 0:01:55.3]} 18. Rfd1 {[%clk
0:01:44.6]} 18... Rcd8 {[%clk 0:01:54.4]} 19. Bh3 {[%clk 0:01:41.5]} 19... Ndc5
{[%clk 0:01:50.4]} 20. Ba3 {[%clk 0:01:32.9]} 20... Rfe8 {[%clk 0:01:42.9]} 21.
Bb2 {[%clk 0:00:55]} 21... Nd3 {[%clk 0:01:37.3]} 22. Bc3 {[%clk 0:00:54.5]}
22... Bf8 {[%clk 0:01:28.6]} 23. Kf1 {[%clk 0:00:48.2]} 23... Bc5 {[%clk
0:01:26]} 24. Rab1 {[%clk 0:00:29.3]} 24... Be3 {[%clk 0:01:07.9]} 25. Bf5
{[%clk 0:00:26.9]} 25... h6 {[%clk 0:01:05.2]} 26. b4 {[%clk 0:00:24]} 26... Nf2
{[%clk 0:00:51.1]} 27. Rxd8 {[%clk 0:00:21.5]} 27... Rxd8 {[%clk 0:00:50.5]} 28.
Bxe5 {[%clk 0:00:21.3]} 28... Rd2 {[%clk 0:00:48.7]} 29. b5 {[%clk 0:00:17.4]}
29... c5 {[%clk 0:00:46.8]} 30. Nc3 {[%clk 0:00:15.8]} 30... Nd3 {[%clk
0:00:40.7]} 31. Rd1 {[%clk 0:00:11.9]} 31... Rf2+ {[%clk 0:00:39.6]} 32. Kg1
{[%clk 0:00:12.4]} 32... Rxa2+ {[%clk 0:00:38]} 33. Kh1 {[%clk 0:00:12.7]} 33...
Nf2+ {[%clk 0:00:37.7]} 34. Kg2 {[%clk 0:00:11.4]} 34... Rc2 {[%clk 0:00:36]}
0-1